bitfinex/quotes_SOLUSD_20240713
["timestamp","ask_amount","ask_price","bid_price","bid_amount"]
[1720901936473,6.5294,140.42,140.36,11.97]
[1720901936684,11.97,140.41,140.36,11.97]
[1720901937083,11.97,140.41,140.33,20.0]
[1720901937276,11.97,140.41,140.36,11.97]
[1720901937961,6.5294,140.42,140.36,11.97]
[1720901938160,6.5294,140.42,140.38,11.97]
[1720901938380,6.5294,140.42,140.4,11.97]
[1720901939291,6.5294,140.42,140.39,11.97]
[1720901941366,6.3836,140.46,140.41,11.97]
[1720901941676,6.3836,140.46,140.43,11.97]
[1720901942289,18.3536,140.46,140.37,15.4561]
[1720901942488,18.3536,140.46,140.41,11.97]
[1720901946796,11.97,140.45,140.38,20.0]
[1720901946996,11.97,140.45,140.4,11.97]
[1720901947173,6.3836,140.46,140.39,11.97]
[1720901947377,11.97,140.44,140.39,11.97]
[1720901947694,11.97,140.45,140.4,11.97]
[1720901950073,11.97,140.44,140.39,11.97]
[1720901950293,27.2321,140.44,140.34,8.72892109]
[1720901950496,11.97,140.42,140.37,11.97]
[1720901950883,18.3536,140.41,140.33,15.4561]
[1720901951088,18.3536,140.41,140.31,15.33062109]
[1720901951403,18.3536,140.41,140.36,11.97]
[1720901951601,18.3536,140.41,140.35,11.97]
[1720901951898,11.97,140.4,140.35,11.97]
[1720901954003,15.2621,140.39,140.3,15.4561]
[1720901954183,27.2321,140.39,140.34,11.97]
[1720901954682,15.2621,140.39,140.34,11.97]
[1720901954884,27.2321,140.39,140.34,11.97]
[1720901958303,15.2621,140.39,140.35,11.97]
[1720901958492,15.2621,140.39,140.31,45.0]
[1720901958811,6.3836,140.41,140.37,11.97]
[1720901960287,18.3536,140.41,140.31,45.0]
[1720901960489,18.3536,140.41,140.36,11.97]
[1720901965808,15.2621,140.4,140.34,11.97]
[1720901966109,15.2621,140.4,140.36,11.97]
[1720901967112,15.2621,140.44,140.39,11.97]
[1720901967290,15.2621,140.44,140.4,11.97]
[1720901968918,27.2321,140.44,140.39,11.97]
[1720901969225,11.97,140.43,140.38,11.97]
[1720901969515,11.97,140.43,140.33,6.2685]
[1720901969701,11.97,140.43,140.38,11.97]
[1720901970883,27.2321,140.44,140.39,11.97]
[1720901972109,27.2321,140.44,140.34,45.0]
[1720901972296,27.2321,140.44,140.39,11.97]
[1720901973896,15.2621,140.44,140.4,11.97]
[1720901975090,15.2621,140.44,140.42,11.97]
[1720901975291,6.3129,140.45,140.43,11.97]
[1720901975495,6.3129,140.45,140.44,11.97]
[1720901976611,15.988,140.48,140.44,11.97]
[1720901976797,15.988,140.48,140.38,6.0504]
[1720901976997,15.988,140.48,140.43,11.97]
[1720901976998,27.958,140.48,140.43,11.97]
[1720901977203,15.988,140.48,140.39,45.0]
[1720901977398,15.988,140.48,140.44,11.97]
[1720901978287,15.988,140.48,140.39,45.0]
[1720901978501,15.988,140.48,140.44,11.97]
[1720901982620,15.988,140.48,140.4,20.0]
[1720901982800,15.988,140.48,140.44,11.97]
[1720901984203,15.988,140.48,140.4,20.0]
[1720901984404,15.988,140.48,140.44,11.97]
[1720901984824,27.958,140.48,140.43,11.97]
[1720901985824,15.988,140.48,140.44,11.97]
[1720901986813,15.988,140.48,140.45,11.97]
[1720901988305,15.988,140.48,140.4,20.0]
[1720901988504,15.988,140.48,140.44,11.97]
[1720901992537,15.988,140.48,140.41,45.0]
[1720901992719,15.988,140.48,140.44,11.97]
[1720901994407,15.988,140.48,140.45,11.97]
[1720901996335,15.988,140.48,140.4,20.0]
[1720901996543,15.988,140.48,140.44,11.97]
[1720901996735,27.958,140.48,140.43,11.97]
[1720901999234,15.988,140.48,140.44,11.97]
[1720901999742,15.988,140.48,140.45,11.97]
[1720902004431,15.988,140.48,140.4,1.42386883]
[1720902004612,15.988,140.48,140.45,11.97]
[1720902008945,15.988,140.48,140.4,45.0]
[1720902009250,15.988,140.48,140.44,11.97]
[1720902010222,15.988,140.48,140.4,45.0]
[1720902010446,15.988,140.48,140.44,11.97]
[1720902012220,15.988,140.48,140.45,11.97]
[1720902018359,15.988,140.48,140.41,20.0]
[1720902018565,15.988,140.48,140.44,11.97]
[1720902019735,15.988,140.48,140.45,11.97]
[1720902022754,6.2505,140.49,140.46,11.97]
[1720902023057,16.2023,140.51,140.47,11.97]
[1720902026160,28.1723,140.51,140.47,11.97]
[1720902028265,28.1723,140.51,140.46,11.97]
[1720902030864,16.2023,140.51,140.48,11.97]
[1720902033065,16.2023,140.51,140.49,11.97]
[1720902033643,6.3209,140.52,140.49,11.97]
[1720902034860,6.3209,140.52,140.48,11.97]
[1720902037653,6.3209,140.52,140.42,53.9558]
[1720902037849,6.3209,140.52,140.43,65.0]
[1720902038147,18.2909,140.52,140.47,11.97]
[1720902039862,6.3209,140.52,140.48,11.97]
[1720902040756,6.3209,140.52,140.43,65.0]
[1720902041069,6.3209,140.52,140.48,11.97]
[1720902041466,6.3209,140.52,140.49,11.97]
[1720902043491,6.3209,140.52,140.47,11.97]
[1720902045176,18.2909,140.52,140.43,20.0]
[1720902045344,11.97,140.5,140.42,20.0]
[1720902045670,11.97,140.5,140.45,11.97]
[1720902046775,15.9752,140.51,140.46,11.97]
[1720902046776,27.9452,140.51,140.46,11.97]
[1720902047545,15.9752,140.51,140.42,31.97]
[1720902047756,15.9752,140.51,140.47,11.97]
[1720902049147,27.9452,140.51,140.46,11.97]
[1720902050887,27.9452,140.51,140.42,20.0]
[1720902051051,27.9452,140.51,140.46,11.97]
[1720902052086,15.9752,140.51,140.46,11.97]
[1720902052383,27.9452,140.51,140.46,11.97]
[1720902053985,11.97,140.49,140.44,11.97]
[1720902054168,11.97,140.49,140.41,15.019]
[1720902054169,11.97,140.49,140.45,11.97]
[1720902054357,11.97,140.5,140.45,11.97]
[1720902058385,11.97,140.49,140.39,6.2713]
[1720902058587,11.97,140.5,140.45,11.97]
[1720902058958,11.97,140.49,140.44,11.97]
[1720902059359,11.97,140.5,140.45,11.97]
[1720902061784,11.97,140.5,140.4,20.0]
[1720902061976,11.97,140.5,140.45,11.97]
[1720902062672,27.9452,140.51,140.45,11.97]
[1720902062857,15.9752,140.51,140.45,11.97]
[1720902063062,15.9752,140.51,140.47,11.97]
[1720902063464,27.9452,140.51,140.42,11.97]
[1720902063682,27.9452,140.51,140.46,11.97]
[1720902065166,15.9752,140.51,140.42,11.97]
[1720902065381,15.9752,140.51,140.48,11.97]
[1720902065678,33.4806,140.55,140.5,11.97]
[1720902066080,21.5106,140.55,140.5,11.97]
[1720902066291,21.5106,140.55,140.51,11.97]
[1720902066292,33.4806,140.55,140.51,11.97]
[1720902066589,21.5106,140.55,140.51,11.97]
[1720902067272,21.5106,140.55,140.52,11.97]
[1720902067488,21.5106,140.55,140.51,11.97]
[1720902067986,33.4806,140.55,140.5,11.97]
[1720902068674,21.5106,140.55,140.5,11.97]
[1720902069196,21.5106,140.55,140.51,11.97]
[1720902069868,21.5106,140.55,140.43,21.7768]
[1720902070196,33.4806,140.55,140.5,11.97]
[1720902073291,21.5106,140.55,140.51,11.97]
[1720902075372,21.5106,140.55,140.52,11.97]
[1720902076282,21.5106,140.55,140.51,11.97]
[1720902077886,21.5106,140.55,140.52,11.97]
[1720902079398,21.5106,140.55,140.53,11.97]
[1720902079613,22.01,140.59,140.54,11.97]
[1720902079775,22.01,140.59,140.56,11.97]
[1720902080393,22.01,140.59,140.55,11.97]
[1720902080898,22.01,140.59,140.54,11.97]
[1720902081071,33.98,140.59,140.54,11.97]
[1720902081473,33.98,140.59,140.48,6.0542]
[1720902081674,33.98,140.59,140.54,11.97]
[1720902082900,11.97,140.57,140.52,11.97]
[1720902083206,22.01,140.59,140.47,15.4431]
[1720902083207,11.97,140.56,140.51,11.97]
[1720902084209,11.97,140.57,140.52,11.97]
[1720902084704,22.01,140.59,140.52,11.97]
[1720902084886,11.97,140.58,140.53,11.97]
[1720902086000,11.97,140.57,140.52,11.97]
[1720902086389,11.97,140.57,140.51,11.97]
[1720902088912,22.01,140.59,140.51,11.97]
[1720902089215,11.97,140.57,140.52,11.97]
[1720902091414,11.97,140.57,140.47,15.4431]
[1720902091620,11.97,140.57,140.52,11.97]
[1720902093504,11.97,140.57,140.51,11.97]
[1720902093710,11.97,140.57,140.52,11.97]
[1720902095215,22.01,140.59,140.49,11.97]
[1720902095419,11.97,140.58,140.53,11.97]
[1720902095595,22.01,140.59,140.52,11.97]
[1720902095596,11.97,140.57,140.52,11.97]
[1720902096706,22.01,140.59,140.5,20.0]
[1720902096913,11.97,140.58,140.53,11.97]
[1720902101125,22.01,140.59,140.53,11.97]
[1720902101419,22.01,140.59,140.5,20.0]
[1720902101596,22.01,140.59,140.55,11.97]
[1720902101801,22.01,140.59,140.56,11.97]
[1720902103115,22.01,140.59,140.55,11.97]
[1720902110930,22.01,140.59,140.56,13.39275769]
[1720902111132,28.3986,140.62,140.57,11.97]
[1720902111437,16.4286,140.62,140.57,11.97]
[1720902111639,28.3986,140.62,140.57,11.97]
[1720902112014,16.4286,140.62,140.58,13.39266272]
[1720902112218,16.4286,140.62,140.58,11.97]
[1720902112430,16.4286,140.62,140.59,1.42185973]
[1720902112733,16.4286,140.62,140.58,11.97]
[1720902113922,28.3986,140.62,140.57,11.97]
[1720902115509,11.97,140.61,140.52,16.6642]
[1720902115826,11.97,140.6,140.55,11.97]
[1720902116354,11.97,140.61,140.56,11.97]
[1720902118240,11.97,140.6,140.5,6.2854]
[1720902118534,11.97,140.6,140.55,11.97]
[1720902121334,11.97,140.59,140.54,11.97]
[1720902122820,16.4286,140.62,140.54,11.97]
[1720902123040,11.97,140.59,140.5,6.2854]
[1720902123242,11.97,140.59,140.54,11.97]
[1720902123444,11.97,140.59,140.51,45.0]
[1720902123647,11.97,140.59,140.54,11.97]
[1720902124229,28.58,140.58,140.49,73.01679298]
[1720902124424,28.58,140.58,140.53,11.97]
[1720902127053,16.61,140.58,140.54,11.97]
[1720902128954,28.58,140.58,140.53,11.97]
[1720902130028,16.61,140.58,140.54,11.97]
[1720902131342,16.61,140.58,140.53,11.97]
[1720902131562,28.58,140.58,140.53,11.97]
[1720902134050,28.58,140.58,140.49,25.13679298]
[1720902134365,11.97,140.54,140.45,16.197]
[1720902134565,11.97,140.53,140.48,11.97]
[1720902135953,11.97,140.52,140.47,11.97]
[1720902136155,11.97,140.52,140.48,20.0]
[1720902136657,11.97,140.53,140.48,31.97]
[1720902137042,15.2586,140.56,140.48,20.0]
[1720902137241,11.97,140.55,140.5,11.97]
[1720902137443,27.2286,140.56,140.5,11.97]
[1720902137652,11.97,140.55,140.5,11.97]
[1720902138441,11.97,140.54,140.49,11.97]
[1720902139662,11.97,140.55,140.5,11.97]
[1720902140954,11.97,140.54,140.49,11.97]
[1720902141158,11.97,140.53,140.48,11.97]
[1720902142480,37.2286,140.56,140.45,16.197]
[1720902142777,11.97,140.51,140.46,11.97]
[1720902144378,11.97,140.51,140.45,16.197]
[1720902144546,11.97,140.51,140.46,31.97]
[1720902147180,11.97,140.51,140.46,20.0]
[1720902147381,11.97,140.5,140.45,11.97]
[1720902148270,15.2586,140.52,140.44,11.97]
[1720902148271,11.97,140.49,140.44,11.97]
[1720902148467,11.97,140.49,140.45,20.0]
[1720902150675,11.97,140.49,140.44,11.97]
[1720902151693,15.2586,140.52,140.44,11.97]
[1720902151893,11.97,140.49,140.44,11.97]
[1720902152466,11.97,140.49,140.41,16.197]
[1720902152679,11.97,140.49,140.42,65.0]
[1720902152879,15.2586,140.52,140.45,11.97]
[1720902153087,11.97,140.5,140.45,11.97]
[1720902153666,11.97,140.5,140.42,65.0]
[1720902153972,11.97,140.5,140.45,11.97]
[1720902155689,11.97,140.5,140.42,65.0]
[1720902155890,11.97,140.49,140.44,11.97]
[1720902156410,11.97,140.49,140.42,65.0]
[1720902156599,11.97,140.49,140.44,11.97]
[1720902157790,11.97,140.49,140.42,20.0]
[1720902158293,11.97,140.49,140.44,11.97]
[1720902160498,11.97,140.5,140.45,11.97]
[1720902161504,11.97,140.51,140.46,11.97]
[1720902164806,11.97,140.5,140.42,20.0]
[1720902165007,11.97,140.5,140.45,11.97]
[1720902165701,11.97,140.5,140.43,45.0]
[1720902165895,11.97,140.5,140.45,11.97]
[1720902171604,15.2586,140.52,140.45,11.97]
[1720902171788,11.97,140.5,140.45,11.97]
[1720902176309,11.97,140.51,140.45,11.97]
[1720902180519,11.97,140.49,140.43,11.97]
[1720902180891,11.97,140.47,140.41,16.197]
[1720902181094,11.97,140.47,140.42,11.97]
[1720902181901,11.97,140.46,140.41,11.97]
[1720902182316,11.97,140.47,140.42,11.97]
[1720902184794,11.97,140.47,140.39,6.3491]
[1720902185109,11.97,140.47,140.42,11.97]
[1720902189997,11.97,140.46,140.41,11.97]
[1720902190416,11.97,140.47,140.42,11.97]
[1720902192946,11.97,140.46,140.41,11.97]
[1720902195054,11.97,140.46,140.4,20.0]
[1720902195341,11.97,140.46,140.41,11.97]
[1720902195551,11.97,140.45,140.4,31.97]
[1720902195751,11.97,140.44,140.38,15.0846]
[1720902195918,11.97,140.43,140.38,27.0546]
[1720902196544,11.97,140.43,140.38,15.0846]
[1720902196745,11.97,140.43,140.38,27.0546]
[1720902196940,11.97,140.44,140.39,11.97]
[1720902197251,26.6468,140.48,140.39,11.97]
[1720902197252,11.97,140.45,140.39,11.97]
[1720902198122,11.97,140.45,140.4,11.97]
[1720902199444,16.6468,140.48,140.4,11.97]
[1720902199652,11.97,140.46,140.41,11.97]
[1720902200557,16.6468,140.48,140.41,11.97]
[1720902200848,11.97,140.46,140.41,11.97]
[1720902205835,11.97,140.45,140.4,11.97]
[1720902210251,16.6468,140.48,140.41,11.97]
[1720902210558,11.97,140.46,140.41,11.97]
[1720902212731,11.97,140.47,140.42,11.97]
[1720902215466,11.97,140.46,140.41,11.97]
[1720902215944,6.1313,140.49,140.43,11.97]
[1720902216139,11.97,140.48,140.43,11.97]
[1720902220639,6.1313,140.49,140.43,11.97]
[1720902220840,11.97,140.48,140.43,11.97]
[1720902225696,22.7182,140.52,140.45,11.97]
[1720902225975,11.97,140.49,140.44,11.97]
[1720902226358,11.97,140.49,140.43,11.97]
[1720902227153,11.97,140.48,140.4,15.3687]
[1720902227355,11.97,140.47,140.42,11.97]
[1720902229757,11.97,140.48,140.42,11.97]
[1720902231085,11.97,140.47,140.42,11.97]
[1720902231670,11.97,140.47,140.4,15.3687]
[1720902231869,11.97,140.46,140.41,31.97]
[1720902233474,11.97,140.46,140.41,32.75268663]
[1720902233658,11.97,140.46,140.41,20.78268663]
[1720902233859,11.97,140.49,140.4,15.3687]
[1720902234057,11.97,140.45,140.41,20.0]
[1720902236574,11.97,140.45,140.4,15.3687]
[1720902236887,11.97,140.45,140.39,6.4613]
[1720902236888,11.97,140.44,140.39,11.97]
[1720902239299,16.9545,140.44,140.39,11.97]
[1720902239667,11.97,140.44,140.39,11.97]
[1720902241889,11.97,140.42,140.37,11.97]
[1720902242079,16.9551,140.42,140.37,11.97]
[1720902242390,11.97,140.41,140.36,27.3771]
[1720902243081,16.9551,140.42,140.37,11.97]
[1720902243476,11.97,140.42,140.37,13.38717517]
[1720902243666,11.97,140.42,140.38,11.97]
[1720902243898,16.9544,140.44,140.39,11.97]
[1720902244278,4.9844,140.44,140.4,11.97]
[1720902245098,4.9847,140.43,140.39,11.97]
[1720902245299,16.9547,140.43,140.38,11.97]
[1720902248295,4.985,140.42,140.38,11.97]
[1720902248793,4.985,140.42,140.36,15.4071]
[1720902249008,4.985,140.42,140.38,11.97]
[1720902252481,16.9554,140.41,140.36,15.4071]
[1720902252684,16.9554,140.41,140.36,11.97]
[1720902255710,16.9554,140.41,140.33,15.8893]
[1720902255889,16.9557,140.4,140.35,11.97]
[1720902256085,4.9861,140.39,140.33,15.8893]
[1720902256396,11.97,140.38,140.33,11.97]
[1720902256619,11.97,140.38,140.34,11.97]
[1720902256916,11.97,140.38,140.33,11.97]
[1720902260310,11.97,140.38,140.29,24.47575027]
[1720902260490,11.97,140.38,140.33,11.97]
[1720902263585,16.2501,140.39,140.33,11.97]
[1720902263790,16.2501,140.39,140.35,11.97]
[1720902264310,16.2501,140.39,140.36,11.97]
[1720902266514,21.2362,140.39,140.36,11.97]
[1720902267617,16.2501,140.39,140.36,11.97]
[1720902267924,11.3026,140.4,140.37,11.97]
[1720902268121,4.985,140.42,140.38,11.97]
[1720902268422,4.9854,140.41,140.38,11.97]
[1720902268800,4.9857,140.4,140.37,11.97]
[1720902269913,4.9861,140.39,140.36,11.97]
[1720902271618,4.9858,140.4,140.36,11.97]
[1720902272831,4.9858,140.4,140.37,11.97]
[1720902273202,4.9852,140.42,140.39,11.97]
[1720902274234,4.9854,140.41,140.39,11.97]
[1720902274717,4.9858,140.4,140.35,11.97]
[1720902274930,4.9858,140.4,140.38,11.97]
[1720902275114,4.9861,140.39,140.38,11.97]
[1720902275310,11.97,140.42,140.37,11.97]
[1720902276304,4.9858,140.4,140.37,11.97]
[1720902277024,4.9858,140.4,140.38,11.97]
[1720902280416,4.9861,140.39,140.37,11.97]
[1720902281032,4.9861,140.39,140.33,16.2521]
[1720902281232,4.9861,140.39,140.36,11.97]
[1720902282913,11.97,140.41,140.33,16.2521]
[1720902282914,4.9858,140.4,140.33,16.2521]
[1720902283114,4.9862,140.39,140.34,20.0]
[1720902283332,4.9862,140.39,140.35,11.97]
[1720902283645,4.9864,140.38,140.34,31.97]
[1720902284344,16.9562,140.39,140.34,31.97]
[1720902284810,4.9862,140.39,140.35,11.97]
[1720902286216,16.9558,140.4,140.35,11.97]
[1720902286421,4.9858,140.4,140.36,11.97]
[1720902289334,4.9861,140.39,140.36,11.97]
[1720902291628,4.9861,140.39,140.35,11.97]
[1720902292027,16.9561,140.39,140.34,31.97]
[1720902292214,4.9861,140.39,140.34,31.97]
[1720902295139,16.9558,140.4,140.34,31.97]
[1720902295311,16.9558,140.4,140.35,11.97]
[1720902300027,4.9858,140.4,140.36,11.97]
[1720902300544,21.4021,140.43,140.36,11.97]
[1720902300731,11.97,140.42,140.37,11.97]
[1720902301325,4.9856,140.41,140.37,11.97]
[1720902303161,4.9856,140.41,140.38,11.97]
[1720902307152,4.9858,140.4,140.38,11.97]
[1720902307339,24.433,140.42,140.34,20.0]
[1720902307539,4.9864,140.38,140.36,11.97]
[1720902308266,4.9861,140.39,140.36,11.97]
[1720902309039,4.9858,140.4,140.37,11.97]
[1720902311059,4.9858,140.4,140.36,11.97]
[1720902313569,4.9858,140.4,140.31,20.0]
[1720902313876,4.9858,140.4,140.37,11.97]
[1720902314579,4.9855,140.41,140.37,11.97]
[1720902316471,4.9855,140.41,140.36,11.97]
[1720902316680,11.97,140.41,140.32,45.0]
[1720902316859,11.97,140.4,140.35,11.97]
[1720902317378,11.97,140.4,140.36,11.97]
[1720902317559,16.9558,140.4,140.36,11.97]
[1720902317889,4.9858,140.4,140.36,11.97]
[1720902318093,4.9858,140.4,140.37,11.97]
[1720902318465,4.9858,140.4,140.36,11.97]
[1720902319995,4.9855,140.41,140.37,11.97]
[1720902320286,4.9858,140.4,140.36,11.97]
[1720902322085,27.4377,140.39,140.31,20.0]
[1720902322294,27.4377,140.39,140.34,11.97]
[1720902322472,39.4077,140.39,140.34,11.97]
[1720902322669,27.4377,140.39,140.34,11.97]
[1720902325269,27.4377,140.39,140.29,8.58645027]
[1720902325270,22.4516,140.39,140.28,6.45606947]
[1720902325472,11.97,140.36,140.31,11.97]
[1720902326005,45.0,140.38,140.3,11.97]
[1720902326006,11.97,140.35,140.3,11.97]
[1720902326295,16.9578,140.35,140.3,11.97]
[1720902326471,11.97,140.35,140.3,11.97]
[1720902328902,16.9576,140.35,140.26,16.6582]
[1720902329126,16.9576,140.35,140.3,11.97]
[1720902329473,16.9573,140.36,140.31,11.97]
[1720902329897,11.97,140.35,140.31,11.97]
[1720902330309,4.9873,140.36,140.31,11.97]
[1720902330597,16.9573,140.36,140.31,11.97]
[1720902330804,4.9873,140.36,140.31,11.97]
[1720902331007,16.9573,140.36,140.31,11.97]
[1720902331582,16.9575,140.35,140.3,11.97]
[1720902331780,4.9875,140.35,140.31,11.97]
[1720902332083,16.9575,140.35,140.31,11.97]
[1720902332294,16.9575,140.35,140.26,16.6582]
[1720902332295,16.9575,140.35,140.3,11.97]
[1720902333010,33.4867,140.35,140.3,11.97]
[1720902333312,23.1709,140.34,140.29,11.97]
[1720902333516,4.9886,140.32,140.28,11.97]
[1720902333721,16.9583,140.33,140.28,11.97]
[1720902336809,11.97,140.33,140.28,11.97]
[1720902337010,4.9886,140.32,140.28,11.97]
[1720902339612,4.9886,140.32,140.25,1.42559675]
[1720902339815,4.9886,140.32,140.28,11.97]
[1720902340117,16.9583,140.33,140.29,11.97]
[1720902340298,4.9883,140.33,140.29,11.97]
[1720902340714,6.213,140.34,140.3,11.97]
[1720902341113,11.2011,140.34,140.3,11.97]
[1720902343214,4.9882,140.33,140.3,11.97]
[1720902343413,18.183,140.34,140.29,11.97]
[1720902344012,45.0,140.33,140.29,11.97]
[1720902344523,15.2405,140.3,140.27,11.97]
[1720902344722,15.2405,140.3,140.26,11.97]
[1720902345319,15.2405,140.3,140.27,11.97]
[1720902350325,15.2405,140.3,140.22,15.1286]
[1720902350507,15.2405,140.3,140.27,11.97]
[1720902350917,15.2405,140.3,140.26,11.97]
[1720902353309,15.2405,140.3,140.27,11.97]
[1720902353808,15.2405,140.3,140.28,11.97]
[1720902361338,4.9883,140.33,140.29,11.97]
[1720902365619,33.6099,140.34,140.29,11.97]
[1720902365831,4.9886,140.32,140.29,11.97]
[1720902368242,4.9886,140.32,140.28,11.97]
[1720902370650,4.9889,140.31,140.23,20.0]
[1720902370852,4.9889,140.31,140.27,11.97]
[1720902371329,16.9587,140.32,140.27,11.97]
[1720902371724,16.9587,140.32,140.24,45.0]
[1720902371924,16.9587,140.32,140.27,11.97]
[1720902374843,4.989,140.31,140.25,20.0]
[1720902375052,16.959,140.31,140.26,11.97]
[1720902375231,16.959,140.31,140.23,20.0]
[1720902375232,11.97,140.3,140.25,11.97]
[1720902375431,16.959,140.31,140.26,20.0]
[1720902376755,16.959,140.31,140.26,31.97]
[1720902376951,4.989,140.31,140.27,11.97]
[1720902377152,16.9586,140.32,140.27,11.97]
[1720902378529,4.9883,140.33,140.28,11.97]
[1720902378750,4.9883,140.33,140.29,11.97]
[1720902378955,16.9583,140.33,140.28,11.97]
[1720902379556,4.9886,140.32,140.28,11.97]
[1720902379946,4.9886,140.32,140.27,11.97]
[1720902380457,16.9586,140.32,140.27,11.97]
[1720902381462,4.9886,140.32,140.27,11.97]
[1720902382562,4.9886,140.32,140.26,20.0]
[1720902382741,16.9586,140.32,140.23,20.0]
[1720902382945,4.9889,140.31,140.23,20.0]
[1720902383153,4.9889,140.31,140.27,11.97]
[1720902386061,16.9589,140.31,140.26,11.97]
[1720902387452,4.9889,140.31,140.27,11.97]
[1720902388458,11.97,140.33,140.27,11.97]
[1720902389268,4.9887,140.32,140.27,11.97]
[1720902391341,16.9587,140.32,140.27,11.97]
[1720902392350,4.9887,140.32,140.28,11.97]
[1720902392549,4.9882,140.33,140.23,20.0]
[1720902392765,21.6399,140.34,140.3,11.97]
[1720902393270,21.6399,140.34,140.31,11.97]
[1720902394049,21.6399,140.34,140.28,11.97]
[1720902394368,21.6399,140.34,140.32,11.97]
[1720902395150,15.4269,140.34,140.32,11.97]
[1720902395451,22.882,140.38,140.33,11.97]
[1720902395782,22.882,140.38,140.34,11.97]
[1720902395972,34.852,140.38,140.33,11.97]
[1720902397751,4.9871,140.37,140.34,11.97]
[1720902399681,27.8685,140.38,140.34,11.97]
[1720902400258,4.9868,140.37,140.34,11.97]
[1720902402164,4.9872,140.36,140.34,11.97]
[1720902402877,4.9869,140.37,140.34,11.97]
[1720902403854,4.9872,140.36,140.34,11.97]
[1720902404282,4.9872,140.36,140.33,11.97]
[1720902404880,4.9872,140.36,140.34,11.97]
[1720902411591,22.882,140.38,140.35,11.97]
[1720902413391,22.882,140.38,140.34,11.97]
[1720902414895,22.382,140.38,140.34,11.97]
[1720902419385,22.382,140.38,140.28,47.88]
[1720902419594,34.352,140.38,140.33,11.97]
[1720902420487,22.382,140.38,140.34,11.97]
[1720902426393,22.382,140.38,140.29,20.0]
[1720902426690,22.382,140.38,140.33,11.97]
[1720902427073,22.382,140.38,140.34,11.97]
[1720902430798,22.382,140.38,140.29,20.0]
[1720902430993,34.352,140.38,140.33,11.97]
[1720902434793,22.382,140.38,140.33,11.97]
[1720902435993,22.382,140.38,140.34,11.97]